bitfinex/quotes_BTCUSD_20220111
["timestamp","ask_amount","ask_price","bid_price","bid_amount"]
[1641887347695,1.17297211,42159.0,42158.0,0.000626]
[1641887347898,1.12297211,42159.0,42158.0,0.000626]
[1641887348494,1.13597211,42159.0,42158.0,0.000626]
[1641887348897,1.18597211,42159.0,42158.0,0.000626]
[1641887349696,1.17297211,42159.0,42158.0,0.000626]
[1641887350544,1.18997211,42159.0,42158.0,0.000626]
[1641887351742,1.17297211,42159.0,42158.0,0.000626]
[1641887352443,0.92267295,42159.0,42158.0,0.000626]
[1641887352644,0.0951442,42159.0,42158.0,0.000626]
[1641887352843,0.63415137,42159.0,42158.0,0.000626]
[1641887353048,0.68415137,42159.0,42158.0,0.000626]
[1641887353444,0.69757137,42159.0,42158.0,0.000626]
[1641887353897,0.65957137,42159.0,42158.0,0.000626]
[1641887354100,0.65957137,42159.0,42150.0,0.601]
[1641887354101,1.21146053,42158.0,42150.0,0.601]
[1641887354297,0.81435635,42157.0,42150.0,0.601]
[1641887354497,0.059324,42155.0,42150.0,0.601]
[1641887354997,0.118647,42155.0,42150.0,0.601]
[1641887355198,0.259423,42154.0,42150.0,0.601]
[1641887355399,0.35906158,42153.0,42150.0,0.601]
[1641887355898,0.35906158,42153.0,42150.0,0.651]
[1641887356499,0.37406158,42153.0,42150.0,0.651]
[1641887357943,0.35906158,42153.0,42150.0,0.601]
[1641887358347,0.00079438,42154.0,42150.0,0.651]
[1641887358544,0.017,42153.0,42150.0,0.651]
[1641887358744,0.017,42153.0,42152.0,0.00078926]
[1641887359845,0.00079377,42155.0,42152.0,0.00078926]
[1641887360447,0.25257401,42154.0,42152.0,0.00078926]
[1641887362297,0.00079376,42155.0,42152.0,0.00078926]
[1641887362495,0.032,42154.0,42152.0,0.00078926]
[1641887363099,0.032,42154.0,42153.0,0.37228]
[1641887363500,0.032,42154.0,42153.0,0.42228]
[1641887364297,0.0071442,42159.0,42153.0,0.42228]
[1641887364498,0.00079394,42156.0,42150.0,1.35360666]
[1641887364696,0.032,42154.0,42151.0,0.37228]
[1641887364944,0.24399163,42153.0,42151.0,0.37228]
[1641887365143,0.032,42154.0,42151.0,0.37228]
[1641887365943,0.00079395,42155.0,42151.0,0.37228]
[1641887366546,0.029,42155.0,42151.0,0.37228]
[1641887366747,0.02979389,42155.0,42151.0,0.37228]
[1641887367146,0.02979389,42155.0,42151.0,1.07488666]
[1641887367345,0.02979389,42155.0,42151.0,0.70260666]
[1641887367548,0.08910689,42155.0,42151.0,0.75303535]
[1641887367748,0.059313,42155.0,42151.0,0.75303535]
[1641887368048,0.06010689,42155.0,42150.0,1.35360666]
[1641887368694,0.08210689,42155.0,42150.0,0.651]
[1641887368891,0.08210689,42155.0,42153.0,0.00078813]
[1641887369093,0.081313,42155.0,42153.0,0.00078813]
[1641887369293,0.08210689,42155.0,42153.0,0.00078813]
[1641887370293,0.081313,42155.0,42153.0,0.00078813]
[1641887370495,0.059313,42155.0,42153.0,0.00078813]
[1641887370695,0.126313,42155.0,42153.0,0.00078813]
[1641887372354,0.059313,42155.0,42153.0,0.00078813]
[1641887372547,0.126313,42155.0,42153.0,0.00078813]
[1641887372747,0.067,42155.0,42153.0,0.00078813]
[1641887373951,0.29633213,42156.0,42153.0,0.00078813]
[1641887374548,0.34633213,42156.0,42153.0,0.00078813]
[1641887374749,0.40564413,42156.0,42153.0,0.00078813]
[1641887375050,0.40485024,42156.0,42153.0,0.00078813]
[1641887375951,0.35485024,42156.0,42153.0,0.00078813]
[1641887376599,0.38685024,42156.0,42153.0,0.00078813]
[1641887377896,0.35485024,42156.0,42153.0,0.00078813]
[1641887378697,0.42185024,42156.0,42155.0,0.00078588]
[1641887378898,0.68127324,42156.0,42155.0,0.00078588]
[1641887379851,0.61427324,42156.0,42155.0,0.00078588]
[1641887380445,0.259423,42156.0,42155.0,0.00078588]
[1641887380648,0.052,42156.0,42155.0,0.00078588]
[1641887381946,0.00079388,42158.0,42155.0,0.42036588]
[1641887382145,0.0071442,42159.0,42155.0,0.47036588]
[1641887382345,0.00793807,42159.0,42157.0,0.42350471]
[1641887382547,0.00793807,42159.0,42158.0,0.70664316]
[1641887382745,0.00793807,42159.0,42158.0,0.71239649]
[1641887382948,0.00079387,42159.0,42158.0,1.08790408]
[1641887383594,0.00079386,42161.0,42158.0,1.08790408]
[1641887383999,0.00079386,42161.0,42158.0,1.08868659]
[1641887384200,0.00079386,42161.0,42158.0,1.13334759]
[1641887384598,0.34161383,42167.0,42158.0,0.77408318]
[1641887384796,0.34161383,42167.0,42159.0,0.05041433]
[1641887384797,0.00079385,42162.0,42159.0,0.05041433]
[1641887384996,0.00079385,42162.0,42160.0,0.37228]
[1641887385396,0.00079385,42162.0,42160.0,0.42228]
[1641887385797,0.34161383,42167.0,42160.0,0.42228]
[1641887385997,0.00079384,42163.0,42159.0,0.05041433]
[1641887386200,0.00079384,42163.0,42161.0,0.05041433]
[1641887386497,0.00079384,42163.0,42162.0,0.70582877]
[1641887386900,0.00079384,42163.0,42162.0,0.42228]
[1641887387198,0.00079383,42165.0,42162.0,0.42228]
[1641887387445,0.00079383,42165.0,42162.0,0.05]
[1641887387647,0.00079383,42165.0,42163.0,0.37228]
[1641887387844,0.00079383,42165.0,42163.0,0.42228]
[1641887388044,0.00079383,42165.0,42163.0,1.12809426]
[1641887388244,0.67599003,42168.0,42163.0,1.12809426]
[1641887388444,0.00079382,42166.0,42163.0,0.75581426]
[1641887388645,0.001,42165.0,42163.0,0.83081426]
[1641887388843,0.001,42165.0,42164.0,0.00057733]
[1641887390650,0.001,42165.0,42164.0,0.07357733]
[1641887391096,0.001,42165.0,42164.0,0.12357733]
[1641887391900,0.42,42168.0,42164.0,0.05057733]
[1641887392102,0.00079382,42167.0,42164.0,0.00057733]
[1641887392599,0.00379382,42167.0,42164.0,0.01957733]
[1641887392998,0.003,42167.0,42164.0,0.01957733]
[1641887394002,0.7179201,42168.0,42166.0,0.0006136]
[1641887394201,0.259423,42167.0,42166.0,0.0006136]
[1641887394603,0.259423,42167.0,42166.0,0.0446136]
[1641887395851,0.259423,42167.0,42166.0,0.0006136]
[1641887396655,0.261423,42167.0,42166.0,0.0486136]
[1641887397855,0.259423,42167.0,42166.0,0.0006136]
[1641887398698,0.261423,42167.0,42166.0,0.0486136]
[1641887399905,0.259423,42167.0,42166.0,0.0006136]
[1641887400805,0.261423,42167.0,42166.0,0.0486136]
[1641887401208,0.002,42167.0,42166.0,0.0486136]
[1641887401905,0.42,42168.0,42166.0,0.0006136]
[1641887402745,0.429,42168.0,42166.0,0.0116136]
[1641887403845,0.429,42168.0,42166.0,0.70642786]
[1641887404045,0.42,42168.0,42166.0,0.70642786]
[1641887404646,0.428,42168.0,42166.0,0.71742786]
[1641887404846,0.428,42168.0,42167.0,0.60495203]
[1641887405053,0.428,42168.0,42167.0,0.65495203]
[1641887406095,0.42,42168.0,42166.0,0.65556563]
[1641887406696,0.428,42168.0,42167.0,0.60495203]
[1641887407298,0.428,42168.0,42166.0,0.66656563]
[1641887407897,0.42,42168.0,42166.0,0.65556563]
[1641887408397,0.42,42168.0,42166.0,0.0506136]
[1641887408797,0.428,42168.0,42166.0,0.0116136]
[1641887410546,0.42,42168.0,42166.0,0.0006136]
[1641887410746,0.428,42168.0,42166.0,0.0116136]
[1641887411946,0.42,42168.0,42166.0,0.0006136]
[1641887412846,0.42,42168.0,42166.0,0.0126136]
[1641887412847,0.428,42168.0,42166.0,0.0126136]
[1641887414501,0.42,42168.0,42166.0,0.0006136]
[1641887414703,0.423,42168.0,42166.0,0.0106136]
[1641887415615,0.423,42168.0,42167.0,0.25910526]
[1641887415802,0.423,42168.0,42167.0,0.64651136]
[1641887416001,0.42,42168.0,42167.0,0.25910526]
[1641887416402,0.42,42168.0,42167.0,0.30640526]
[1641887416602,0.42,42168.0,42167.0,0.68545502]
[1641887416803,0.42,42168.0,42167.0,0.69194335]
[1641887417003,0.42923587,42189.0,42168.0,1.25716]
[1641887417360,0.0031745,42179.0,42177.0,0.591]
[1641887417550,0.5847827,42197.0,42178.0,0.42080844]
[1641887417749,0.24832994,42193.0,42182.0,0.591]
[1641887417949,0.24832994,42193.0,42187.0,0.00126191]
[1641887418153,0.259423,42192.0,42188.0,0.0473]
[1641887418351,0.24832994,42193.0,42189.0,0.0473]
[1641887418552,0.24832994,42193.0,42190.0,0.0473]
[1641887418751,0.259423,42192.0,42191.0,0.0473]
[1641887419250,0.24832994,42193.0,42191.0,0.0473]
[1641887419454,0.259423,42192.0,42191.0,0.0473]
[1641887419854,0.609423,42192.0,42191.0,0.0473]
[1641887420052,0.259423,42192.0,42191.0,0.0473]
[1641887420854,0.309423,42192.0,42191.0,0.0513]
[1641887422100,0.729423,42192.0,42191.0,0.0473]
[1641887422699,0.729423,42192.0,42186.0,0.0973]
[1641887422900,0.709423,42192.0,42191.0,0.004]
[1641887424002,0.709423,42192.0,42191.0,0.00076778]
[1641887424957,0.709423,42192.0,42191.0,0.00476778]
[1641887425860,1.11248257,42192.0,42185.0,0.70581426]
[1641887426557,1.11248257,42192.0,42173.0,1.78873806]
[1641887426558,1.31248257,42192.0,42186.0,0.60473439]
[1641887426757,1.05379254,42187.0,42186.0,0.60473439]
[1641887427056,0.259423,42187.0,42186.0,0.60473439]
[1641887427259,0.0485672,42188.0,42180.0,0.60473439]
[1641887427459,0.42891342,42188.0,42180.0,0.60473439]
[1641887427656,0.42891342,42188.0,42180.0,0.65473439]
[1641887427858,0.42891342,42188.0,42180.0,0.05]
[1641887428159,0.00079491,42186.0,42180.0,0.2648885]
[1641887428602,0.00079491,42186.0,42180.0,0.3148885]
[1641887428898,0.00779491,42186.0,42182.0,0.00064656]
[1641887429098,0.007,42186.0,42182.0,0.00064656]
[1641887429301,0.00079492,42185.0,42182.0,0.00064656]
[1641887430099,0.00079492,42185.0,42183.0,0.0012819]
[1641887430303,0.007,42186.0,42183.0,0.0012819]
[1641887430500,0.00779492,42186.0,42183.0,0.0012819]
[1641887430699,0.00079492,42186.0,42183.0,0.0012819]
[1641887431401,0.05,42190.0,42183.0,0.0012819]
[1641887431598,0.0007865,42187.0,42183.0,0.0012819]
[1641887431801,0.0007865,42187.0,42182.0,0.00064656]
[1641887432650,0.31754712,42191.0,42182.0,0.00064656]
[1641887432849,0.31754712,42191.0,42182.0,0.01064656]
[1641887432850,0.0017865,42187.0,42182.0,0.01064656]
[1641887433849,0.001,42187.0,42184.0,0.00064506]
[1641887434050,0.0007865,42187.0,42184.0,0.00064506]
[1641887434850,0.0017865,42187.0,42184.0,0.01364506]
[1641887435051,0.001,42187.0,42184.0,0.01364506]
[1641887436108,0.00078905,42188.0,42184.0,0.00064506]
[1641887436310,0.05,42190.0,42184.0,0.00064506]
[1641887436508,0.00078905,42188.0,42184.0,0.00064506]
[1641887436908,0.00078905,42188.0,42184.0,0.00964506]
[1641887437411,0.061,42190.0,42184.0,0.00964506]
[1641887437612,0.00078905,42188.0,42184.0,0.00964506]
[1641887438614,0.061,42190.0,42184.0,0.00964506]
[1641887438814,0.01078827,42188.0,42186.0,0.00056916]
[1641887439849,0.259423,42187.0,42186.0,0.00056916]
[1641887440952,0.59643419,42187.0,42186.0,0.00056916]
[1641887442252,0.58685911,42187.0,42186.0,0.00056916]
[1641887442453,0.259423,42187.0,42186.0,0.00056916]
[1641887442852,0.270423,42187.0,42186.0,0.00856916]
[1641887443054,0.59858967,42187.0,42186.0,0.00856916]
[1641887444103,0.58758967,42187.0,42186.0,0.00056916]
[1641887444903,0.59858967,42187.0,42186.0,0.00956916]
[1641887446806,0.61358967,42187.0,42186.0,0.00856916]
[1641887448068,0.61358967,42187.0,42186.0,0.00056916]
[1641887448270,0.58758967,42187.0,42186.0,0.00056916]
[1641887448968,0.61358967,42187.0,42186.0,0.00856916]
[1641887450170,0.58758967,42187.0,42186.0,0.00056916]
[1641887450772,0.259423,42187.0,42186.0,0.00056916]
[1641887453003,0.305423,42187.0,42186.0,0.00756916]
[1641887453405,1.07360607,42187.0,42186.0,0.00756916]
[1641887453606,0.52360607,42187.0,42186.0,0.00756916]
[1641887453806,0.52360607,42187.0,42186.0,0.00775866]
[1641887454206,0.47760607,42187.0,42186.0,0.00075866]
[1641887454705,0.259423,42187.0,42186.0,0.00075866]
[1641887454952,0.273423,42187.0,42186.0,0.00075866]
[1641887455349,0.90165643,42187.0,42186.0,0.00075866]
[1641887456151,0.259423,42187.0,42186.0,0.00075866]
[1641887456953,0.270423,42187.0,42186.0,0.00075866]
[1641887458053,0.259423,42187.0,42186.0,0.00075866]
[1641887458901,0.66405636,42187.0,42186.0,0.00075866]
[1641887459500,1.26464006,42187.0,42186.0,0.00075866]
[1641887459704,0.8720067,42187.0,42186.0,0.00075866]
[1641887460103,0.8600067,42187.0,42186.0,0.00075866]
[1641887460701,0.259423,42187.0,42186.0,0.00075866]
[1641887460903,0.269423,42187.0,42186.0,0.00075866]
[1641887462001,0.60122561,42187.0,42186.0,0.00075866]
[1641887462656,0.59122561,42187.0,42186.0,0.00075866]
[1641887462853,0.60522561,42187.0,42186.0,0.00075866]
[1641887464856,0.60222561,42187.0,42186.0,0.00075866]
[1641887466100,0.59122561,42187.0,42186.0,0.00075866]
[1641887466901,0.60222561,42187.0,42186.0,0.00075866]
[1641887468201,0.59122561,42187.0,42186.0,0.00075866]
[1641887469003,0.60522561,42187.0,42186.0,0.00075866]
[1641887470153,0.59122561,42187.0,42186.0,0.00075866]
[1641887470954,0.60422561,42187.0,42186.0,0.00075866]
[1641887472253,0.59122561,42187.0,42186.0,0.00075866]
[1641887473054,0.60622561,42187.0,42186.0,0.00075866]
[1641887474104,0.59122561,42187.0,42186.0,0.00075866]
[1641887474906,0.60422561,42187.0,42186.0,0.00075866]
[1641887475709,0.59422561,42187.0,42186.0,0.00075866]
[1641887476307,0.58122561,42187.0,42186.0,0.00075866]
[1641887476910,0.59422561,42187.0,42186.0,0.00075866]
[1641887477350,0.59359407,42187.0,42186.0,0.00075866]
[1641887478253,0.58059407,42187.0,42186.0,0.00075866]
[1641887479149,0.59259407,42187.0,42186.0,0.00075866]
[1641887480351,0.58059407,42187.0,42186.0,0.00075866]
[1641887480949,0.59259407,42187.0,42186.0,0.00075866]
[1641887482302,0.58059407,42187.0,42186.0,0.00075866]
[1641887482902,0.59359407,42187.0,42186.0,0.00075866]
[1641887484304,0.58059407,42187.0,42186.0,0.00075866]
[1641887484858,0.58059407,42187.0,42186.0,0.00055866]
[1641887485055,0.59259407,42187.0,42186.0,0.00055866]
[1641887486256,0.58059407,42187.0,42186.0,0.00055866]
[1641887487055,0.59159407,42187.0,42186.0,0.00055866]
[1641887488257,0.58059407,42187.0,42186.0,0.00055866]
[1641887488901,0.59359407,42187.0,42186.0,0.00054444]
[1641887490203,0.58059407,42187.0,42186.0,0.00054444]
[1641887491006,0.59359407,42187.0,42186.0,0.00054444]
[1641887492357,0.58059407,42187.0,42186.0,0.00054444]
[1641887492957,0.59359407,42187.0,42186.0,0.00054444]
[1641887493157,0.26179146,42187.0,42186.0,0.00054444]
[1641887494158,0.24879146,42187.0,42186.0,0.00054444]
[1641887494958,0.26279146,42187.0,42186.0,0.00054444]
[1641887496304,0.24879146,42187.0,42186.0,0.00054444]
[1641887497105,0.26479146,42187.0,42186.0,0.00154444]
[1641887498003,0.68479146,42187.0,42186.0,0.00154444]
[1641887498205,0.66879146,42187.0,42186.0,0.00054444]
[1641887499007,0.68579146,42187.0,42186.0,0.00154444]
[1641887500252,0.66879146,42187.0,42186.0,0.00054444]
[1641887500952,0.68179146,42187.0,42186.0,0.00154444]
[1641887502356,0.66879146,42187.0,42186.0,0.00054444]
[1641887502954,0.68079146,42187.0,42186.0,0.00054444]
[1641887504408,0.66879146,42187.0,42186.0,0.00054444]
[1641887505010,0.68179146,42187.0,42186.0,0.00054444]
[1641887506413,0.66879146,42187.0,42186.0,0.00054444]
[1641887507112,0.70479146,42187.0,42186.0,0.00454444]
[1641887508357,0.66879146,42187.0,42186.0,0.00054444]
[1641887508959,0.68879146,42187.0,42186.0,0.00454444]
[1641887510357,0.68879146,42187.0,42186.0,0.00054444]
[1641887510358,0.66879146,42187.0,42186.0,0.00054444]
[1641887510759,1.01816489,42187.0,42186.0,0.00054444]
[1641887510963,1.13116489,42187.0,42186.0,0.00054444]
[1641887511212,1.23437681,42187.0,42186.0,0.00054444]
[1641887511808,1.43437681,42187.0,42186.0,0.00054444]
[1641887512608,1.38437681,42187.0,42186.0,0.00054444]
[1641887512809,1.18479681,42187.0,42186.0,0.00054444]
[1641887513010,1.19579681,42187.0,42186.0,0.00054444]
[1641887513908,1.19579681,42187.0,42186.0,0.00072592]
[1641887514310,1.18479681,42187.0,42186.0,0.00072592]
[1641887515059,1.19579681,42187.0,42186.0,0.00072592]
[1641887516259,1.18479681,42187.0,42186.0,0.00072592]
[1641887517060,1.19679681,42187.0,42186.0,0.00072592]
[1641887518261,1.53479681,42187.0,42186.0,0.00072592]
[1641887519107,1.54479681,42187.0,42186.0,0.00072592]
[1641887519708,1.44479681,42187.0,42186.0,0.00072592]
[1641887520312,1.38479681,42187.0,42186.0,0.00072592]
[1641887520613,1.18479681,42187.0,42186.0,0.00072592]
[1641887521111,1.19579681,42187.0,42186.0,0.00072592]
[1641887522382,1.18479681,42187.0,42186.0,0.00072592]
[1641887523088,1.19679681,42187.0,42186.0,0.00072592]
[1641887523882,1.19088489,42187.0,42186.0,0.00072592]
[1641887524883,1.17888489,42187.0,42186.0,0.00072592]
[1641887525083,1.19088489,42187.0,42186.0,0.00072592]
[1641887526111,1.39088489,42187.0,42186.0,0.00072592]
[1641887526310,1.37888489,42187.0,42186.0,0.00072592]
[1641887527012,1.39088489,42187.0,42186.0,0.00072592]
[1641887528310,1.37888489,42187.0,42186.0,0.00072592]
[1641887529012,1.39088489,42187.0,42186.0,0.00072592]
[1641887529410,2.65188489,42187.0,42186.0,0.00072592]
[1641887529612,1.39088489,42187.0,42186.0,0.00072592]
[1641887529856,1.44679681,42187.0,42186.0,0.00072592]
[1641887530257,1.43479681,42187.0,42186.0,0.00072592]
[1641887531157,1.44579681,42187.0,42186.0,0.00072592]
[1641887532263,1.43479681,42187.0,42186.0,0.00072592]
[1641887532459,1.38479681,42187.0,42186.0,0.00072592]
[1641887533059,1.39679681,42187.0,42186.0,0.00072592]
[1641887534610,1.98949312,42187.0,42186.0,0.00072592]
[1641887535012,1.39679681,42187.0,42186.0,0.00072592]
[1641887536411,1.38479681,42187.0,42186.0,0.00072592]
[1641887537012,1.39679681,42187.0,42186.0,0.00072592]
[1641887538263,1.38479681,42187.0,42186.0,0.00072592]
[1641887539063,1.39579681,42187.0,42186.0,0.00072592]
[1641887540264,1.38479681,42187.0,42186.0,0.00072592]
[1641887541106,1.39579681,42187.0,42186.0,0.00072592]
[1641887542307,1.38479681,42187.0,42186.0,0.00072592]
[1641887543108,1.39579681,42187.0,42186.0,0.00072592]
[1641887543710,2.10127584,42187.0,42186.0,0.00072592]
[1641887544409,1.38479681,42187.0,42186.0,0.00072592]
[1641887545156,1.39579681,42187.0,42186.0,0.00072592]
[1641887546557,1.38479681,42187.0,42186.0,0.00072592]
[1641887547259,1.39579681,42187.0,42186.0,0.00072592]
[1641887548258,1.38479681,42187.0,42186.0,0.00072592]
[1641887549110,1.39579681,42187.0,42186.0,0.00072592]
[1641887549811,1.44579681,42187.0,42186.0,0.00072592]
[1641887550012,1.45293875,42187.0,42186.0,0.00072592]
[1641887550415,2.14741778,42187.0,42186.0,0.00072592]
[1641887550910,2.09741778,42187.0,42186.0,0.00072592]
[1641887551111,2.10841778,42187.0,42186.0,0.00072592]
[1641887551511,1.40293875,42187.0,42186.0,0.00072592]
[1641887551710,2.10841778,42187.0,42186.0,0.00072592]
[1641887552110,1.40293875,42187.0,42186.0,0.00072592]
[1641887552359,1.39193875,42187.0,42186.0,0.00072592]
[1641887552763,1.42448394,42187.0,42186.0,0.00072592]
[1641887553159,1.43548394,42187.0,42186.0,0.00072592]
[1641887554563,1.42448394,42187.0,42186.0,0.00072592]
[1641887555163,2.14096297,42187.0,42186.0,0.00072592]
[1641887556105,1.43548394,42187.0,42186.0,0.00072592]
[1641887556306,1.42448394,42187.0,42186.0,0.00072592]
[1641887557106,1.43548394,42187.0,42186.0,0.00072592]
[1641887558410,1.42448394,42187.0,42186.0,0.00072592]
[1641887558612,0.79526532,42187.0,42186.0,0.00072592]
[1641887558813,0.67470338,42187.0,42186.0,0.00072592]
[1641887559014,0.66879146,42187.0,42186.0,0.00072592]
[1641887559311,0.86542142,42187.0,42186.0,0.00072592]
[1641887560163,0.26079146,42187.0,42186.0,0.00072592]
[1641887560360,0.24879146,42187.0,42186.0,0.00072592]
[1641887561261,0.25379146,42187.0,42186.0,0.00072592]
[1641887562960,0.24879146,42187.0,42186.0,0.00072592]
[1641887563163,0.25279146,42187.0,42186.0,0.00072592]
[1641887563365,0.25993217,42187.0,42186.0,0.00072592]
[1641887564409,0.25593217,42187.0,42186.0,0.00072592]
[1641887565212,0.26093217,42187.0,42186.0,0.00072592]
[1641887566017,0.25593217,42187.0,42186.0,0.00072592]
[1641887566410,0.25093217,42187.0,42186.0,0.00072592]
[1641887566815,0.5919136,42187.0,42186.0,0.00072592]
[1641887567211,1.1519136,42187.0,42186.0,0.00072592]
[1641887567959,1.0519136,42187.0,42186.0,0.00072592]
[1641887568158,1.1519136,42187.0,42186.0,0.00072592]
[1641887568359,1.0519136,42187.0,42186.0,0.00072592]
[1641887568564,1.0419136,42187.0,42186.0,0.00072592]
[1641887568961,1.0419136,42187.0,42186.0,0.000508]
[1641887569161,1.1549136,42187.0,42186.0,0.000508]
[1641887569363,0.7049136,42187.0,42186.0,0.000508]
[1641887569561,0.6049136,42187.0,42186.0,0.000508]
[1641887569765,0.7049136,42187.0,42186.0,0.000508]
[1641887569962,0.6049136,42187.0,42186.0,0.000508]
[1641887570162,0.9549136,42187.0,42186.0,0.000508]
[1641887570361,0.9419136,42187.0,42186.0,0.000508]
[1641887571214,0.9539136,42187.0,42186.0,0.000508]
[1641887571609,0.7039136,42187.0,42186.0,0.000508]
[1641887572811,0.6039136,42187.0,42186.0,0.000508]
[1641887573011,0.5919136,42187.0,42186.0,0.000508]
[1641887573211,0.6049136,42187.0,42186.0,0.000508]
[1641887574115,0.27735217,42187.0,42186.0,0.000508]
[1641887574514,0.26435217,42187.0,42186.0,0.000508]
[1641887574961,0.25093217,42187.0,42186.0,0.000508]
[1641887575161,0.26193217,42187.0,42186.0,0.000508]
[1641887576160,0.59471492,42187.0,42186.0,0.000508]
[1641887576367,0.58371492,42187.0,42186.0,0.000508]
[1641887576562,0.25093217,42187.0,42186.0,0.000508]
[1641887577163,0.26779146,42187.0,42186.0,0.00802495]
[1641887577561,0.26779146,42187.0,42186.0,0.000508]
[1641887577762,0.024,42187.0,42186.0,0.000508]
[1641887578462,0.00070425,42189.0,42186.0,0.000508]
[1641887579112,0.6830402,42193.0,42186.0,0.000508]
[1641887579310,0.04514017,42189.0,42186.0,0.008508]
[1641887580514,0.00714017,42189.0,42186.0,0.000508]
[1641887581112,0.00714017,42189.0,42186.0,0.008508]
[1641887581113,0.02314017,42189.0,42186.0,0.008508]
[1641887582964,0.00714017,42189.0,42186.0,0.000508]
[1641887583163,0.02314017,42189.0,42186.0,0.008508]
[1641887583966,0.02314017,42189.0,42188.0,0.00050735]
[1641887584568,0.00714017,42189.0,42188.0,0.00050735]
[1641887585167,0.02114017,42189.0,42188.0,0.00750735]
[1641887586419,0.00714017,42189.0,42188.0,0.00050735]
[1641887587019,1.0995574,42189.0,42188.0,0.00050735]
[1641887587219,1.43320976,42189.0,42188.0,0.00050735]
[1641887587419,0.63320976,42189.0,42188.0,0.00050735]
[1641887587620,0.30929917,42189.0,42188.0,0.00050735]
[1641887588422,0.29829917,42189.0,42188.0,0.00050735]
[1641887589222,0.31629917,42189.0,42188.0,0.00050735]
[1641887590463,0.29829917,42189.0,42188.0,0.00050735]
[1641887591264,0.31329917,42189.0,42188.0,0.00050735]
[1641887592466,0.25099917,42189.0,42188.0,0.00050735]
[1641887593266,0.26699917,42189.0,42188.0,0.00050735]
[1641887595115,0.25099917,42189.0,42188.0,0.00050735]
[1641887595315,0.27499917,42189.0,42188.0,0.00050735]
[1641887596617,0.25099917,42189.0,42188.0,0.00050735]
[1641887597221,0.25099917,42189.0,42188.0,0.00350735]
[1641887597222,0.26999917,42189.0,42188.0,0.00350735]
[1641887598466,0.25099917,42189.0,42188.0,0.00050735]
[1641887598865,0.25099917,42189.0,42188.0,0.00809359]
[1641887599065,0.25099917,42189.0,42188.0,0.00050735]
[1641887599264,0.27799917,42189.0,42188.0,0.00250735]
[1641887600466,0.27799917,42189.0,42188.0,0.00050735]
[1641887600467,0.25099917,42189.0,42188.0,0.00050735]
[1641887601320,0.27499917,42189.0,42188.0,0.00350735]
[1641887602622,0.25099917,42189.0,42188.0,0.00050735]
[1641887603222,0.27299917,42189.0,42188.0,0.00450735]
[1641887604520,0.25099917,42189.0,42188.0,0.00050735]
[1641887605171,0.30199917,42189.0,42188.0,0.00450735]
[1641887605971,0.63321795,42189.0,42188.0,0.00450735]
[1641887606172,0.64494923,42189.0,42188.0,0.00450735]
[1641887606572,0.59394923,42189.0,42188.0,0.00050735]
[1641887607171,0.62094923,42189.0,42188.0,0.00050735]
[1641887608614,0.59394923,42189.0,42188.0,0.00050735]
[1641887609214,0.60994923,42189.0,42188.0,0.00050735]
[1641887610618,0.59394923,42189.0,42188.0,0.00050735]
[1641887611220,0.60694923,42189.0,42188.0,0.00050735]
[1641887612667,0.59394923,42189.0,42188.0,0.00050735]
[1641887613267,0.60894923,42189.0,42188.0,0.00050735]
[1641887614570,0.59394923,42189.0,42188.0,0.00050735]
[1641887615271,0.60494923,42189.0,42188.0,0.00050735]
[1641887616519,0.59394923,42189.0,42188.0,0.00050735]
[1641887617323,0.60594923,42189.0,42188.0,0.00050735]
[1641887618522,0.59394923,42189.0,42188.0,0.00050735]
[1641887619225,0.60594923,42189.0,42188.0,0.00050735]
[1641887620264,0.60594923,42189.0,42188.0,0.00611576]
[1641887620567,0.59394923,42189.0,42188.0,0.00050735]
[1641887621165,0.25099917,42189.0,42188.0,0.00050735]
[1641887621373,0.26699917,42189.0,42188.0,0.00050735]
[1641887622563,0.25099917,42189.0,42188.0,0.00050735]
[1641887623366,0.26699917,42189.0,42188.0,0.00050735]
[1641887624216,0.59809417,42189.0,42188.0,0.00050735]
[1641887624616,0.58209417,42189.0,42188.0,0.00050735]
[1641887625416,0.59609417,42189.0,42188.0,0.00050735]
[1641887626619,0.58209417,42189.0,42188.0,0.00050735]
[1641887627470,0.59609417,42189.0,42188.0,0.00050735]
[1641887629273,0.61109417,42189.0,42188.0,0.00050735]
[1641887630573,0.25099917,42189.0,42188.0,0.00050735]
[1641887630774,0.25099917,42189.0,42188.0,0.00759312]
[1641887630973,0.25099917,42189.0,42188.0,0.00050735]
[1641887631418,0.26699917,42189.0,42188.0,0.00050735]
[1641887632715,0.25099917,42189.0,42188.0,0.00050735]
[1641887633316,0.26999917,42189.0,42188.0,0.00050735]
[1641887634879,0.25099917,42189.0,42188.0,0.00050735]
[1641887635470,0.29999917,42189.0,42188.0,0.00050735]
[1641887636671,0.57978239,42189.0,42188.0,0.00050735]
[1641887637469,0.62878239,42189.0,42188.0,0.00050735]
[1641887638715,0.57978239,42189.0,42188.0,0.00050735]
[1641887639316,0.62878239,42189.0,42188.0,0.00050735]
[1641887640717,0.57978239,42189.0,42188.0,0.00050735]
[1641887640915,0.57978239,42189.0,42188.0,0.00699271]
[1641887641116,0.57978239,42189.0,42188.0,0.00050735]
[1641887641316,0.25099917,42189.0,42188.0,0.00050735]
[1641887641519,0.29999917,42189.0,42188.0,0.00050735]
[1641887642666,0.25099917,42189.0,42188.0,0.00050735]
[1641887643366,0.29999917,42189.0,42188.0,0.00050735]
[1641887644370,0.71999917,42189.0,42188.0,0.00050735]
[1641887644568,0.67099917,42189.0,42188.0,0.00050735]
[1641887645467,0.71999917,42189.0,42188.0,0.00050735]
[1641887646717,0.67099917,42189.0,42188.0,0.00050735]
[1641887647416,0.71999917,42189.0,42188.0,0.00050735]
[1641887648018,0.29999917,42189.0,42188.0,0.00050735]
[1641887648618,0.25099917,42189.0,42188.0,0.00050735]
[1641887649420,0.26299917,42189.0,42188.0,0.00050735]
[1641887650663,0.25099917,42189.0,42188.0,0.00050735]
[1641887651474,0.42461947,42189.0,42188.0,0.00050735]
[1641887651665,0.42461947,42189.0,42184.0,0.59583818]
[1641887651666,0.5,42188.0,42184.0,0.59583818]
[1641887651867,0.243859,42185.0,42184.0,0.6024958]
[1641887652069,0.291159,42185.0,42184.0,0.60324545]
[1641887652269,0.58333322,42185.0,42184.0,0.59583818]
[1641887652469,0.01342,42184.0,42182.0,0.59583818]
[1641887652666,1.10596603,42183.0,42182.0,0.59583818]
[1641887653066,1.20596603,42183.0,42182.0,0.59583818]
[1641887653267,1.20596603,42183.0,42180.0,0.69985717]
[1641887653466,1.20596603,42183.0,42173.0,0.69985717]
[1641887653467,0.243859,42181.0,42173.0,0.69985717]
[1641887653721,0.05929,42182.0,42178.0,0.02964435]
[1641887653722,0.43788886,42182.0,42178.0,0.02964435]
[1641887653920,0.243859,42181.0,42178.0,0.02964435]